fUSD/lending_fUSD_20260620
["ID","MTS","AMOUNT","RATE_DAILY","PERIOD"]
[425797259,1781902243000,-150.0,0.0001592,2]
[425797255,1781902243000,-37.12427067,0.00015917,2]
[425797253,1781902243000,-150.0,0.00015916,2]
[425797254,1781902243000,-300.0,0.00015916,2]
[425797251,1781902243000,-151.0,0.00015916,2]
[425797242,1781902243000,-150.0,0.00015916,2]
[425797252,1781902243000,-151.0,0.00015916,2]
[425797245,1781902243000,-151.0,0.00015916,2]
[425797248,1781902243000,-67.21968653,0.00015916,2]
[425797247,1781902243000,-150.0,0.00015916,2]
[425797246,1781902243000,-151.0,0.00015916,2]
[425797258,1781902243000,-151.0,0.00015919,2]
[425797244,1781902243000,-151.0,0.00015916,2]
[425797250,1781902243000,-151.0,0.00015916,2]
[425797260,1781902243000,-316.0,0.0001592,2]
[425797249,1781902243000,-82.78031347,0.00015916,2]
[425797261,1781902243000,-311.0,0.0001592,2]
[425797257,1781902243000,-150.0,0.00015918,2]
[425797284,1781902243000,-319.0,0.00015921,2]
[425797285,1781902243000,-151.0,0.00015921,2]
[425797282,1781902243000,-151.0,0.00015921,2]
[425797280,1781902243000,-317.0,0.00015921,2]
[425797281,1781902243000,-319.0,0.00015921,2]
[425797279,1781902243000,-317.0,0.0001592,2]
[425797278,1781902243000,-151.0,0.0001592,2]
[425797283,1781902243000,-321.0,0.00015921,2]
[425797274,1781902243000,-27.30981839,0.0001592,2]
[425797271,1781902243000,-122.69018161,0.0001592,2]
[425797269,1781902243000,-152.0,0.0001592,2]
[425797267,1781902243000,-151.0,0.0001592,2]
[425797265,1781902243000,-150.0,0.0001592,2]
[425797263,1781902243000,-249.28893508,0.0001592,2]
[425797277,1781902243000,-153.0,0.0001592,2]
[425797262,1781902243000,-151.0,0.0001592,2]
[425797304,1781902244000,-315.0,0.00015921,2]
[425797310,1781902244000,-320.0,0.00016021,2]
[425797308,1781902244000,-321.0,0.00016021,2]
[425797309,1781902244000,-309.0,0.00016021,2]
[425797311,1781902244000,-309.0,0.00016021,2]
[425797307,1781902244000,-320.0,0.00016021,2]
[425797315,1781902244000,-311.0,0.00016021,2]
[425797312,1781902244000,-317.0,0.00016021,2]
[425797314,1781902244000,-319.0,0.00016021,2]
[425797313,1781902244000,-319.0,0.00016021,2]
[425797320,1781902244000,-151.0,0.00016021,2]
[425797317,1781902244000,-320.0,0.00016021,2]
[425797303,1781902244000,-316.0,0.00015921,2]
[425797306,1781902244000,-319.0,0.00015936,2]
[425797301,1781902244000,-311.0,0.00015921,2]
[425797290,1781902244000,-321.0,0.00015921,2]
[425797302,1781902244000,-151.0,0.00015921,2]
[425797286,1781902244000,-313.0,0.00015921,2]
[425797288,1781902244000,-151.0,0.00015921,2]
[425797287,1781902244000,-316.0,0.00015921,2]
[425797289,1781902244000,-320.0,0.00015921,2]
[425797292,1781902244000,-310.0,0.00015921,2]
[425797291,1781902244000,-150.0,0.00015921,2]
[425797300,1781902244000,-312.0,0.00015921,2]
[425797293,1781902244000,-316.0,0.00015921,2]
[425797295,1781902244000,-2287.3455541,0.00015921,2]
[425797297,1781902244000,-151.0,0.00015921,2]
[425797298,1781902244000,-317.0,0.00015921,2]
[425797299,1781902244000,-150.0,0.00015921,2]
[425797296,1781902244000,-317.0,0.00015921,2]
[425797305,1781902244000,-151.0,0.00015921,2]
[425797294,1781902244000,-7712.6444459,0.00015921,2]
[425797319,1781902244000,-316.0,0.00016021,2]
[425797316,1781902244000,-152.0,0.00016021,2]
[425797321,1781902244000,-71.55532312,0.00016021,2]
[425797338,1781902244000,-166.66,0.00017088,2]
[425797341,1781902244000,-165.29,0.00017378,2]
[425797337,1781902244000,-200.0,0.0001705,2]
[425797346,1781902244000,-250.0,0.00017509,2]
[425797343,1781902244000,-841.63,0.00017443,2]
[425797345,1781902244000,-236.60196707,0.00017509,2]
[425797342,1781902244000,-166.66,0.00017433,2]
[425797347,1781902244000,-1500.0,0.00017528,2]
[425797344,1781902244000,-195.0,0.00017509,2]
[425797353,1781902244000,-390.37,0.00018356,2]
[425797352,1781902244000,-4600.50503408,0.00018356,2]
[425797350,1781902244000,-1555.5,0.00018076,2]
[425797318,1781902244000,-310.0,0.00016021,2]
[425797351,1781902244000,-166.66,0.00018123,2]
[425797348,1781902244000,-166.66,0.00017778,2]
[425797340,1781902244000,-200.0,0.00017252,2]
[425797349,1781902244000,-263.0,0.00017808,2]
[425797336,1781902244000,-166.66,0.00016743,2]
[425797339,1781902244000,-154.27387278,0.00017135,2]
[425797323,1781902244000,-78.44467688,0.00016021,2]
[425797327,1781902244000,-313.0,0.00016108,2]
[425797326,1781902244000,-160.0,0.00016033,2]
[425797328,1781902244000,-313.0,0.00016108,2]
[425797324,1781902244000,-311.0,0.00016021,2]
[425797329,1781902244000,-319.0,0.00016108,2]
[425797322,1781902244000,-151.0,0.00015916,2]
[425797330,1781902244000,-318.0,0.00016108,2]
[425797332,1781902244000,-166.66,0.00016397,2]
[425797331,1781902244000,-314.0,0.00016108,2]
[425797334,1781902244000,-263.0,0.00016438,2]
[425797333,1781902244000,-231.2,0.00016438,2]
[425797325,1781902244000,-311.0,0.00016021,2]
[425797335,1781902244000,-168.0,0.00016438,2]
[425797373,1781902245000,-970.7344,0.00019762,2]
[425797370,1781902245000,-1734.62772924,0.0001972,2]
[425797374,1781902245000,-2500.0,0.00019762,2]
[425797372,1781902245000,-12600.9115836,0.00019758,2]
[425797384,1781902245000,-29909.0261747,0.00019962,2]
[425797377,1781902245000,-10000.0,0.000198,2]
[425797375,1781902245000,-5266.54232596,0.00019762,2]
[425797378,1781902245000,-858.281744,0.00019831,2]
[425797380,1781902245000,-2602.5346784,0.00019862,2]
[425797385,1781902245000,-1325.4261044,0.00019962,2]
[425797383,1781902245000,-175294.8493,0.000199,2]
[425797371,1781902245000,-255.3614581,0.00019758,2]
[425797376,1781902245000,-16153.6322249,0.00019784,2]
[425797368,1781902245000,-500.0,0.00019616,2]
[425797361,1781902245000,-1613.0535,0.00018624,2]
[425797366,1781902245000,-1538.00057879,0.000192,2]
[425797367,1781902245000,-233.0,0.00019452,2]
[425797365,1781902245000,-1672.7364795,0.00019172,2]
[425797364,1781902245000,-182.31265812,0.00019062,2]
[425797363,1781902245000,-216.71243202,0.00019062,2]
[425797362,1781902245000,-2674.01,0.0001872,2]
[425797359,1781902245000,-231.2,0.0001841,2]
[425797360,1781902245000,-356.44,0.00018559,2]
[425797358,1781902245000,-11580.25258746,0.00018356,2]
[425797357,1781902245000,-538.715813,0.00018356,2]
[425797356,1781902245000,-279.48818024,0.00018356,2]
[425797355,1781902245000,-4745.99700206,0.00018356,2]
[425797354,1781902245000,-2230.75138316,0.00018356,2]
[425797369,1781902245000,-3687.9649022,0.00019664,2]
[425797381,1781902245000,-5297.9952277,0.00019862,2]
[425797392,1781902245000,-649.0,0.0002,2]
[425797379,1781902245000,-110517.3234,0.00019862,2]
[425797382,1781902245000,-500.0,0.00019899,2]
[425797415,1781902245000,-5528.0,0.000209,5]
[425797414,1781902245000,-356.44,0.00020879,2]
[425797410,1781902245000,-500.0,0.00020799,2]
[425797413,1781902245000,-234.0,0.00020821,2]
[425797411,1781902245000,-200.0,0.00020806,2]
[425797409,1781902245000,-169.92,0.00020712,2]
[425797408,1781902245000,-169.92,0.00020712,2]
[425797407,1781902245000,-169.92,0.00020712,2]
[425797403,1781902245000,-5528.0,0.000205,3]
[425797405,1781902245000,-500.0,0.00020699,2]
[425797406,1781902245000,-500.0,0.00020699,2]
[425797404,1781902245000,-200.0,0.000206,2]
[425797402,1781902245000,-231.2,0.00020381,2]
[425797412,1781902245000,-1865.36488656,0.00020816,2]
[425797400,1781902245000,-232.0,0.0002,2]
[425797401,1781902245000,-1798.80895522,0.00020268,2]
[425797389,1781902245000,-1481.0,0.0002,2]
[425797387,1781902245000,-165.0,0.0002,2]
[425797388,1781902245000,-917.0,0.0002,2]
[425797391,1781902245000,-228.0,0.0002,2]
[425797390,1781902245000,-237.0,0.0002,2]
[425797386,1781902245000,-1883.4398269,0.00019962,2]
[425797396,1781902245000,-597.0,0.0002,2]
[425797394,1781902245000,-306.0,0.0002,2]
[425797395,1781902245000,-155.0,0.0002,2]
[425797398,1781902245000,-293.0,0.0002,2]
[425797399,1781902245000,-4323.0,0.0002,2]
[425797393,1781902245000,-286.0,0.0002,2]
[425797397,1781902245000,-80523.92,0.0002,2]
[425797457,1781902246000,-231.2,0.00022353,2]
[425797451,1781902246000,-155.0,0.00022,2]
[425797452,1781902246000,-597.0,0.00022,2]
[425797447,1781902246000,-649.0,0.00022,2]
[425797446,1781902246000,-228.0,0.00022,2]
[425797448,1781902246000,-286.0,0.00022,2]
[425797449,1781902246000,-306.0,0.00022,2]
[425797443,1781902246000,-1481.0,0.00022,2]
[425797442,1781902246000,-917.0,0.00022,2]
[425797444,1781902246000,-237.0,0.00022,2]
[425797455,1781902246000,-500.0,0.00022137,2]
[425797458,1781902246000,-234.0,0.00022379,2]
[425797456,1781902246000,-2602.53467838,0.00022278,2]
[425797453,1781902246000,-293.0,0.00022,2]
[425797462,1781902246000,-151.0,0.0002246,2]
[425797460,1781902246000,-151.0,0.0002246,2]
[425797459,1781902246000,-500.0,0.00022432,2]
[425797461,1781902246000,-200.0,0.0002246,2]
[425797464,1781902246000,-151.0,0.0002246,2]
[425797469,1781902246000,-151.0,0.0002246,2]
[425797466,1781902246000,-2080.17592889,0.0002246,2]
[425797441,1781902246000,-165.0,0.00022,2]
[425797454,1781902246000,-232.0,0.00022,2]
[425797440,1781902246000,-1000.0,0.00021999,2]
[425797423,1781902246000,-649.0,0.00021,2]
[425797437,1781902246000,-2005.9555727,0.00021912,2]
[425797419,1781902246000,-917.0,0.00021,2]
[425797418,1781902246000,-165.0,0.00021,2]
[425797416,1781902246000,-202.53432694,0.00020916,2]
[425797420,1781902246000,-1481.0,0.00021,2]
[425797417,1781902246000,-193.19,0.00020951,2]
[425797422,1781902246000,-228.0,0.00021,2]
[425797424,1781902246000,-286.0,0.00021,2]
[425797421,1781902246000,-237.0,0.00021,2]
[425797425,1781902246000,-306.0,0.00021,2]
[425797463,1781902246000,-151.0,0.0002246,2]
[425797439,1781902246000,-652.23666753,0.0002195,2]
[425797426,1781902246000,-155.0,0.00021,2]
[425797427,1781902246000,-597.0,0.00021,2]
[425797432,1781902246000,-50753.62,0.00021273,2]
[425797428,1781902246000,-293.0,0.00021,2]
[425797429,1781902246000,-232.0,0.00021,2]
[425797430,1781902246000,-200.0,0.00021014,2]
[425797433,1781902246000,-1934.38338736,0.00021364,2]
[425797434,1781902246000,-192.19906713,0.00021436,2]
[425797436,1781902246000,-46308.24,0.00021623,2]
[425797435,1781902246000,-5266.54232596,0.00021544,2]
[425797438,1781902246000,-5000.0,0.00021918,2]
[425797431,1781902246000,-200.0,0.00021224,2]
[425797465,1781902246000,-151.0,0.0002246,2]
[425797509,1781902246000,-1237.73,0.00022466,2]
[425797467,1781902246000,-151.0,0.0002246,2]
[425797497,1781902246000,-151.0,0.0002246,2]
[425797496,1781902246000,-500.0,0.0002246,2]
[425797498,1781902246000,-151.0,0.0002246,2]
[425797499,1781902246000,-500.0,0.0002246,2]
[425797501,1781902246000,-500.0,0.0002246,2]
[425797500,1781902246000,-151.0,0.0002246,2]
[425797503,1781902246000,-500.0,0.0002246,2]
[425797502,1781902246000,-151.0,0.0002246,2]
[425797504,1781902246000,-500.0,0.0002246,2]
[425797505,1781902246000,-341.59,0.00022466,2]
[425797492,1781902246000,-151.0,0.0002246,2]
[425797506,1781902246000,-332.55,0.00022466,2]
[425797511,1781902246000,-152.0,0.00022598,2]
[425797510,1781902246000,-175.94608024,0.00022553,4]
[425797513,1781902246000,-152.0,0.00022633,7]
[425797512,1781902246000,-152.0,0.00022599,7]
[425797514,1781902246000,-2674.01,0.00022691,2]
[425797515,1781902246000,-50753.62,0.00022691,2]
[425797517,1781902246000,-150.84406616,0.0002271,2]
[425797516,1781902246000,-179.38288373,0.0002271,2]
[425797518,1781902246000,-1148.08283276,0.0002271,2]
[425797468,1781902246000,-151.0,0.0002246,2]
[425797508,1781902246000,-298.87,0.00022466,2]
[425797493,1781902246000,-500.0,0.0002246,2]
[425797507,1781902246000,-498.79,0.00022466,2]
[425797495,1781902246000,-151.0,0.0002246,2]
[425797471,1781902246000,-151.0,0.0002246,2]
[425797494,1781902246000,-151.0,0.0002246,2]
[425797474,1781902246000,-151.0,0.0002246,2]
[425797473,1781902246000,-151.0,0.0002246,2]
[425797470,1781902246000,-151.0,0.0002246,2]
[425797472,1781902246000,-151.0,0.0002246,2]
[425797479,1781902246000,-151.0,0.0002246,2]
[425797475,1781902246000,-151.0,0.0002246,2]
[425797476,1781902246000,-151.0,0.0002246,2]
[425797477,1781902246000,-500.0,0.0002246,2]
[425797478,1781902246000,-151.0,0.0002246,2]
[425797480,1781902246000,-500.0,0.0002246,2]
[425797483,1781902246000,-500.0,0.0002246,2]
[425797484,1781902246000,-151.0,0.0002246,2]
[425797481,1781902246000,-151.0,0.0002246,2]
[425797490,1781902246000,-500.0,0.0002246,2]
[425797489,1781902246000,-151.0,0.0002246,2]
[425797487,1781902246000,-500.0,0.0002246,2]
[425797486,1781902246000,-151.0,0.0002246,2]
[425797485,1781902246000,-151.0,0.0002246,2]
[425797482,1781902246000,-151.0,0.0002246,2]
[425797491,1781902246000,-151.0,0.0002246,2]
[425797488,1781902246000,-151.0,0.0002246,2]
[425797549,1781902247000,-1481.0,0.00024,2]
[425797555,1781902247000,-286.0,0.00024,2]
[425797557,1781902247000,-306.0,0.00024,2]
[425797564,1781902247000,-293.0,0.00024,2]
[425797580,1781902247000,-1498.0,0.00025,2]
[425797547,1781902247000,-165.0,0.00024,2]
[425797551,1781902247000,-228.0,0.00024,2]
[425797550,1781902247000,-237.0,0.00024,2]
[425797560,1781902247000,-157.0,0.00024,2]
[425797562,1781902247000,-597.0,0.00024,2]
[425797565,1781902247000,-151.0,0.00024104,2]
[425797576,1781902247000,-7653.44,0.00024868,7]
[425797566,1781902247000,-200.0,0.00024104,2]
[425797568,1781902247000,-500.0,0.00024173,2]
[425797574,1781902247000,-1000.0,0.00024658,2]
[425797573,1781902247000,-2405.55389863,0.00024652,2]
[425797575,1781902247000,-2602.53467838,0.00024693,2]
[425797572,1781902247000,-200.0,0.00024652,2]
[425797569,1781902247000,-231.2,0.00024324,2]
[425797570,1781902247000,-150.0,0.00024333,2]
[425797571,1781902247000,-151.0,0.00024652,2]
[425797579,1781902247000,-922.0,0.00025,2]
[425797548,1781902247000,-917.0,0.00024,2]
[425797567,1781902247000,-2319.72410669,0.00024104,2]
[425797546,1781902247000,-234.0,0.00023748,2]
[425797522,1781902247000,-165.0,0.00023,2]
[425797542,1781902247000,-500.0,0.00023397,2]
[425797519,1781902247000,-1783.19,0.00022877,2]
[425797523,1781902247000,-917.0,0.00023,2]
[425797521,1781902247000,-1000.0,0.000229,8]
[425797520,1781902247000,-154.56,0.00022885,7]
[425797524,1781902247000,-1481.0,0.00023,2]
[425797525,1781902247000,-237.0,0.00023,2]
[425797527,1781902247000,-649.0,0.00023,2]
[425797526,1781902247000,-228.0,0.00023,2]
[425797529,1781902247000,-306.0,0.00023,2]
[425797528,1781902247000,-286.0,0.00023,2]
[425797532,1781902247000,-381.0,0.00023,2]
[425797545,1781902247000,-2236.95670847,0.00023556,2]
[425797531,1781902247000,-597.0,0.00023,2]
[425797533,1781902247000,-293.0,0.00023,2]
[425797534,1781902247000,-232.0,0.00023,2]
[425797536,1781902247000,-200.0,0.00023008,2]
[425797535,1781902247000,-151.0,0.00023008,2]
[425797537,1781902247000,-2157.14243826,0.00023008,2]
[425797539,1781902247000,-21571.99,0.00023245,7]
[425797538,1781902247000,-323.05,0.00023071,2]
[425797540,1781902247000,-997.17,0.00023288,2]
[425797544,1781902247000,-200.0,0.00023556,2]
[425797541,1781902247000,-5266.54232596,0.00023326,2]
[425797543,1781902247000,-151.0,0.00023556,2]
[425797530,1781902247000,-155.0,0.00023,2]
[425797578,1781902247000,-178.07286399,0.00025,2]
[425797553,1781902247000,-649.0,0.00024,2]
[425797581,1781902247000,-244.0,0.00025,2]
[425797610,1781902247000,-500.0,0.0002589,2]
[425797609,1781902247000,-172.35,0.00025798,7]
[425797615,1781902247000,-151.0,0.00026296,2]
[425797612,1781902247000,-412.58,0.00026027,7]
[425797614,1781902247000,-231.2,0.00026296,2]
[425797613,1781902247000,-5876.2888591,0.00026195,2]
[425797616,1781902247000,-200.0,0.00026296,2]
[425797617,1781902247000,-2682.57183977,0.00026296,2]
[425797619,1781902247000,-248.0,0.00026494,5]
[425797618,1781902247000,-433.16046617,0.00026321,14]
[425797621,1781902247000,-437.34923,0.00026494,2]
[425797605,1781902247000,-2586.85809042,0.00025748,2]
[425797620,1781902247000,-409.541189,0.00026494,2]
[425797626,1781902247000,-151.0,0.00026844,2]
[425797625,1781902247000,-647.98215176,0.00026821,14]
[425797622,1781902247000,-343.445843,0.00026494,2]
[425797624,1781902247000,-200.0,0.00026585,2]
[425797628,1781902247000,-2781.82699784,0.00026844,2]
[425797629,1781902247000,-5266.54232596,0.0002689,2]
[425797627,1781902247000,-200.0,0.00026844,2]
[425797577,1781902247000,-500.0,0.00024999,2]
[425797631,1781902247000,-181.34290123,0.000271,2]
[425797633,1781902247000,-250.06972389,0.000271,2]
[425797632,1781902247000,-10115.4179681,0.000271,2]
[425797623,1781902247000,-285.0,0.00026548,7]
[425797611,1781902247000,-213.49,0.00026027,7]
[425797630,1781902247000,-174.0,0.00027,7]
[425797606,1781902247000,-1000.0,0.00025785,2]
[425797608,1781902247000,-9999.99,0.00025786,2]
[425797586,1781902247000,-603.0,0.00025,2]
[425797585,1781902247000,-323.0,0.00025,2]
[425797583,1781902247000,-656.0,0.00025,2]
[425797584,1781902247000,-305.16384453,0.00025,2]
[425797590,1781902247000,-151.0,0.000252,2]
[425797588,1781902247000,-211.91,0.00025,2]
[425797591,1781902247000,-200.0,0.000252,2]
[425797587,1781902247000,-311.98534359,0.00025,2]
[425797589,1781902247000,-5266.54232596,0.00025108,2]
[425797594,1781902247000,-245.53932056,0.00025321,14]
[425797595,1781902247000,-206.0,0.00025416,2]
[425797582,1781902247000,-242.99314511,0.00025,2]
[425797593,1781902247000,-1148.08283276,0.000253,2]
[425797599,1781902247000,-500.0,0.00025604,2]
[425797600,1781902247000,-500.0,0.00025604,2]
[425797603,1781902247000,-151.0,0.00025748,2]
[425797601,1781902247000,-389.17392786,0.00025604,2]
[425797602,1781902247000,-150.0,0.00025604,2]
[425797597,1781902247000,-500.0,0.00025604,2]
[425797598,1781902247000,-500.0,0.00025604,2]
[425797596,1781902247000,-500.0,0.00025604,2]
[425797592,1781902247000,-2494.55939288,0.000252,2]
[425797604,1781902247000,-200.0,0.00025748,2]
[425797607,1781902247000,-24794.23,0.00025786,2]
[425797657,1781902248000,-1119.16378897,0.00027396,2]
[425797667,1781902248000,-31260.76,0.00027397,10]
[425797659,1781902248000,-671.26000469,0.00027397,2]
[425797660,1781902248000,-1000.0,0.00027397,20]
[425797661,1781902248000,-530.0,0.00027397,2]
[425797663,1781902248000,-3092.81,0.00027397,2]
[425797662,1781902248000,-300.0,0.00027397,2]
[425797664,1781902248000,-45015.5,0.00027397,10]
[425797665,1781902248000,-37512.92,0.00027397,10]
[425797673,1781902248000,-500.0,0.000275,7]
[425797669,1781902248000,-5221.05,0.000274,2]
[425797668,1781902248000,-5221.05,0.000274,2]
[425797671,1781902248000,-5221.05,0.000274,2]
[425797670,1781902248000,-5221.05,0.000274,2]
[425797675,1781902248000,-372.0,0.00027554,5]
[425797674,1781902248000,-3441.60557287,0.00027534,2]
[425797672,1781902248000,-5221.05,0.000274,2]
[425797676,1781902248000,-500.0,0.00027599,7]
[425797658,1781902248000,-1500.0,0.00027397,2]
[425797666,1781902248000,-1474.08,0.00027397,2]
[425797655,1781902248000,-200.0,0.00027392,2]
[425797640,1781902248000,-500.0,0.00027137,2]
[425797651,1781902248000,-1455.72606284,0.000273,2]
[425797678,1781902248000,-10115.4179681,0.000276,2]
[425797635,1781902248000,-313.54123668,0.000271,2]
[425797634,1781902248000,-503.02382159,0.000271,2]
[425797636,1781902248000,-1687.69596946,0.000271,2]
[425797638,1781902248000,-1455.72606284,0.000271,2]
[425797637,1781902248000,-336.63289528,0.000271,2]
[425797641,1781902248000,-200.0,0.0002714,2]
[425797642,1781902248000,-5602.527,0.00027222,2]
[425797639,1781902248000,-2602.53467838,0.00027109,2]
[425797656,1781902248000,-2884.75459676,0.00027392,2]
[425797643,1781902248000,-240.39575102,0.0002726,2]
[425797644,1781902248000,-181.34290123,0.000273,2]
[425797646,1781902248000,-250.06972389,0.000273,2]
[425797647,1781902248000,-503.02382159,0.000273,2]
[425797649,1781902248000,-1687.69596946,0.000273,2]
[425797648,1781902248000,-313.54123668,0.000273,2]
[425797650,1781902248000,-336.63289528,0.000273,2]
[425797652,1781902248000,-2000.0,0.000273,2]
[425797653,1781902248000,-876.7341,0.00027321,14]
[425797654,1781902248000,-151.0,0.00027392,2]
[425797645,1781902248000,-10115.4179681,0.000273,2]
[425797677,1781902248000,-181.34290123,0.000276,2]
[425797724,1781902248000,-278.77701715,0.000283,2]
[425797680,1781902248000,-503.02382159,0.000276,2]
[425797709,1781902248000,-2991.49051684,0.0002794,2]
[425797706,1781902248000,-1270.0,0.00027918,2]
[425797704,1781902248000,-770.0,0.00027918,2]
[425797708,1781902248000,-200.0,0.0002794,2]
[425797707,1781902248000,-151.0,0.0002794,2]
[425797710,1781902248000,-7518.118,0.00028029,18]
[425797711,1781902248000,-168.691,0.00028029,18]
[425797714,1781902248000,-250.06972389,0.000282,2]
[425797713,1781902248000,-10115.4179681,0.000282,2]
[425797719,1781902248000,-1455.72606284,0.000282,2]
[425797720,1781902248000,-200.0,0.00028237,2]
[425797717,1781902248000,-1687.69596946,0.000282,2]
[425797718,1781902248000,-336.63289528,0.000282,2]
[425797721,1781902248000,-283.41853512,0.0002825,2]
[425797715,1781902248000,-503.02382159,0.000282,2]
[425797716,1781902248000,-313.54123668,0.000282,2]
[425797723,1781902248000,-1000.0,0.00028299,2]
[425797722,1781902248000,-231.2,0.00028267,2]
[425797679,1781902248000,-250.06972389,0.000276,2]
[425797705,1781902248000,-11182.0,0.00027918,2]
[425797703,1781902248000,-526.0,0.00027918,2]
[425797712,1781902248000,-181.34290123,0.000282,2]
[425797702,1781902248000,-2100.0,0.000279,10]
[425797701,1781902248000,-1455.72606284,0.000279,2]
[425797682,1781902248000,-1687.69596946,0.000276,2]
[425797681,1781902248000,-313.54123668,0.000276,2]
[425797685,1781902248000,-362.16925053,0.00027601,2]
[425797684,1781902248000,-1455.72606284,0.000276,2]
[425797686,1781902248000,-211.16512627,0.00027601,2]
[425797683,1781902248000,-336.63289528,0.000276,2]
[425797688,1781902248000,-1000.0,0.00027633,2]
[425797689,1781902248000,-150.0,0.00027701,7]
[425797691,1781902248000,-2000.0,0.000278,2]
[425797687,1781902248000,-500.0,0.00027633,7]
[425797700,1781902248000,-336.63289528,0.000279,2]
[425797690,1781902248000,-394.0,0.00027729,7]
[425797694,1781902248000,-181.34290123,0.000279,2]
[425797693,1781902248000,-200.0,0.00027897,2]
[425797697,1781902248000,-503.02382159,0.000279,2]
[425797699,1781902248000,-1687.69596946,0.000279,2]
[425797696,1781902248000,-250.06972389,0.000279,2]
[425797695,1781902248000,-10115.4179681,0.000279,2]
[425797692,1781902248000,-1148.08283276,0.0002789,2]
[425797698,1781902248000,-313.54123668,0.000279,2]
[425797762,1781902249000,-500.0,0.00028438,2]
[425797756,1781902249000,-1910.18787185,0.00028438,2]
[425797759,1781902249000,-1980.8648231,0.00028438,2]
[425797753,1781902249000,-209.40437684,0.00028438,2]
[425797751,1781902249000,-1776.30922209,0.00028438,2]
[425797754,1781902249000,-152.0,0.00028438,2]
[425797752,1781902249000,-9552.16786547,0.00028438,2]
[425797757,1781902249000,-152.0,0.00028438,2]
[425797755,1781902249000,-1842.0326633,0.00028438,2]
[425797760,1781902249000,-152.0,0.00028438,2]
[425797770,1781902249000,-152.0,0.00028438,2]
[425797761,1781902249000,-2054.15682156,0.00028438,2]
[425797765,1781902249000,-152.0,0.00028438,2]
[425797763,1781902249000,-152.0,0.00028438,2]
[425797764,1781902249000,-848.46538731,0.00028438,2]
[425797769,1781902249000,-500.0,0.00028438,2]
[425797767,1781902249000,-209.40437684,0.00028438,2]
[425797773,1781902249000,-152.0,0.00028438,2]
[425797771,1781902249000,-151.0,0.00028438,2]
[425797766,1781902249000,-500.0,0.00028438,2]
[425797749,1781902249000,-1712.93078311,0.00028438,2]
[425797758,1781902249000,-209.40437684,0.00028438,2]
[425797748,1781902249000,-209.40437684,0.00028438,2]
[425797725,1781902249000,-500.0,0.00028438,2]
[425797750,1781902249000,-578.20924308,0.00028438,2]
[425797726,1781902249000,-1030.0,0.00028438,2]
[425797772,1781902249000,-500.0,0.00028438,2]
[425797727,1781902249000,-1068.11,0.00028438,2]
[425797728,1781902249000,-1107.63007,0.00028438,2]
[425797731,1781902249000,-155.30723179,0.00028438,2]
[425797729,1781902249000,-209.40437684,0.00028438,2]
[425797730,1781902249000,-1148.61238259,0.00028438,2]
[425797733,1781902249000,-894.37889902,0.00028438,2]
[425797734,1781902249000,-1191.11104074,0.00028438,2]
[425797732,1781902249000,-158.27996192,0.00028438,2]
[425797747,1781902249000,-151.0,0.00028438,2]